Cogmind - Beta 14 @@@ ROGUE MODE // 2025.03.23 @ 12:36:22 Player: King Of Bel Result: Destroyed by S-10 Pest with Light Assault Rifle Performance ------------- Evolutions (2) 1000 Regions Visited (4) 800 Robots Destroyed (29) 145 Value Destroyed (877) 877 Prototype IDs (2) 40 Alien Tech Used (0) 0 Bonus (24) 24 TOTAL SCORE: 2886 Bonus ------- High Alert Combat Kills 24 Cogmind --------- Core Integrity 0/550 Matter 287/300 Energy 250/250 System Corruption 0% Temperature Cool (0) Movement Core (100) Ox1 Location -8/Storage Parts ------- > --- POWER (1) -------- Ion Engine > --- PROPULSION (4) --- (None) > --- UTILITY (4) ------ Visual Processing Unit > --- WEAPON (2) ------- (None) > --- INVENTORY (5) ---- Aluminum Leg Peak State ------------ > --- POWER ------------ Improved Ion Engine > --- PROPULSION ------- Aluminum Leg Compact Wheel Compact Wheel > --- UTILITY ---------- Medium Storage Unit Structural Scanner Visual Processing Unit > --- WEAPON ----------- Spread Laser Spread Laser > --- INVENTORY -------- Flight Unit Flight Unit Flight Unit Flight Unit VTOL Module Small Storage Unit Medium Laser Spread Laser Spread Laser [Rating: 14] Favorites ----------- Power Ion Engine Engine Ion Engine Propulsion Wheel Leg Aluminum Leg Wheel Wheel Flight Unit Flight Unit Utility Medium Storage Unit Device Structural Scanner Storage Medium Storage Unit Processor Visual Processing Unit Weapon Medium Laser Energy Gun Medium Laser Ballistic Gun Minigun Build | -11 -10 -9 -8 -8 ------- Run | Yrd Mat Mat Mat Sto Slots Evolved 4 | . . 2 2 . Power . | . . . . . Propulsion 2 | . . 1 1 . Utility 2 | . . 1 1 . Weapon . | . . . . . Parts Attached 49 | 6 2 16 . 25 Power 8 | 1 . 2 . 5 Engine 8 | 1 . 2 . 5 Core . | . . . . . Reactor . | . . . . . Propulsion 24 | 2 . 9 . 13 Treads . | . . . . . Leg 4 | . . 1 . 3 Wheel 10 | 2 . 5 . 3 Hover . | . . . . . Flight 10 | . . 3 . 7 Utility 5 | 1 2 1 . 1 Device 1 | . 1 . . . Storage 3 | 1 1 . . 1 Processor 1 | . . 1 . . Hackware . | . . . . . Protection . | . . . . . Artifact . | . . . . . Weapon 12 | 2 . 4 . 6 Energy Gun 11 | 2 . 4 . 5 Energy Cannon . | . . . . . Ballistic Gun 1 | . . . . 1 Ballistic Cannon . | . . . . . Launcher . | . . . . . Special Weapon . | . . . . . Impact Weapon . | . . . . . Slashing Weapon . | . . . . . Piercing Weapon . | . . . . . Special Melee Weapon . | . . . . . Unidentified Prototypes . | . . . . . Parts Lost 29 | . 1 6 . 22 Power 5 | . 1 2 . 2 Propulsion 14 | . . 3 . 11 Utility 2 | . . . . 2 Weapon 8 | . . 1 . 7 Highest Loss Streak 6 | . 1 2 . 6 To Critical Strikes . | . . . . . Average Slot Usage (%) 69 | . 97 72 54 55 Engine 8 | . 14 8 . 7 Leg 4 | . . 6 . 5 Wheel 11 | . 28 8 18 7 Flight 4 | . . 2 . 7 Device 6 | . 11 11 9 1 Storage 8 | . 14 11 9 4 Processor 4 | . . 2 9 9 Energy Gun 18 | . 28 21 9 12 Peak Build Rating 14 | 6 7 14 10 14 Average Rating 8 | 4 6 9 10 9 On Entrance 6 | . 6 6 10 10 Naked Turns . | . . . . . Heaviest Build 24 | 14 20 24 14 24 Greatest Support 44 | 20 20 44 28 28 Greatest Overweight (x) 7 | . . 4 . 7 Average Overweight (x) . | . . . . . Largest Inventory Capacity 20 | 8 10 10 10 20 Average Capacity 8 | 6 9 10 10 7 Most Carried 10 | . 8 9 9 10 Average Carried 5 | . 3 7 9 5 Final Capacity 10 | 8 10 10 10 5 Final Carried 9 | . 8 9 9 1 Class Distribution -------------------- 83% | Mutant 12% | Scavenger-Mutant 4% | Sprinter Dominant Class ---------------- Mutant | -10/Materials Mutant | -9/Materials Mutant | -8/Materials Mutant | -8/Storage Resources | -11 -10 -9 -8 -8 ----------- Run | Yrd Mat Mat Mat Sto Matter Collected 667 | 258 22 140 . 247 Remotely . | . . . . . Salvage Created 857 | . 51 406 . 400 Parts 45 | . 6 13 . 26 Haulers Intercepted . | . . . . . Recyclers Shooed 1 | . . 1 . . Parts Field Recycled . | . . . . . Retrieved Matter . | . . . . . Parts Self-Destructed . | . . . . . Prevented . | . . . . . Kills | -11 -10 -9 -8 -8 ------- Run | Yrd Mat Mat Mat Sto Combat Hostiles Destroyed 25 | . 3 7 . 15 Guns 24 | . 3 6 . 15 Classes Destroyed 7 | . 1 4 . 2 Worker 1 | . . . . 1 Recycler 2 | . . 2 . . Watcher 1 | . . 1 . . Swarmer 8 | . 3 . . 5 Grunt 10 | . . 5 . 5 Duelist 1 | . . . . 1 Sentry 6 | . . 2 . 4 Best Kill Streak 5 | . 3 3 . 5 Combat Bots Only 5 | . 3 3 . 5 Max Kills in Single Turn 2 | . 2 1 . 1 Gunslinging 1 | . 1 . . . Exploded . | . . . . . Melee . | . . . . . Uniques/NPCs Destroyed . | . . . . . Combat | -11 -10 -9 -8 -8 -------- Run | Yrd Mat Mat Mat Sto Hostile Shots Fired 294 | . 28 66 . 200 Missed 70 | . 4 15 . 51 Damage Taken 2856 | . 293 665 . 1898 Core 803 | . 65 183 . 555 Absorbed by Shields 100 | . . . . 100 Core Remaining (%) 76 | 100 74 54 . . Volleys Fired 108 | . 8 34 . 66 Largest 2 | . 2 2 . 2 Hottest 130 | . 100 130 . 130 Shots Fired 183 | . 16 68 . 99 Gun 183 | . 16 68 . 99 Cannon . | . . . . . Launcher . | . . . . . Special . | . . . . . Kinetic 9 | . . . . 9 Thermal 165 | . 16 68 . 81 Explosive . | . . . . . Electromagnetic 9 | . . . . 9 Robot Hit Streak 11 | . 3 5 . 11 Robot Miss Streak 8 | . 8 6 . 6 Penetration Max . | . . . . . Secondary Targets 1 | . 1 . . . Max Gunslinging Chain 1 | . 1 . . . Shots Hit Robots 133 | . 5 50 . 78 Core Hits 122 | . 3 37 . 82 Critical Kills . | . . . . . Critical Parts Destroyed . | . . . . . Critical Strikes 4 | . . 4 . . Burn 4 | . . 4 . . Melee Attacks . | . . . . . Impact . | . . . . . Slashing . | . . . . . Piercing . | . . . . . Sneak Attacks . | . . . . . Combat Hostiles . | . . . . . Follow-up Attacks . | . . . . . Damage Inflicted 2044 | . 89 596 . 1359 Guns 1905 | . 89 593 . 1223 Cannons . | . . . . . Explosions 136 | . . . . 136 Melee . | . . . . . Ramming 3 | . . 3 . . Kinetic 107 | . . . . 107 Thermal 1840 | . 89 593 . 1158 Explosive . | . . . . . Electromagnetic 94 | . . . . 94 Impact . | . . . . . Slashing . | . . . . . Piercing . | . . . . . Highest Corruption 2 | . . 2 . . Average Corruption 1 | . . 1 . . Corruption Purged . | . . . . . Corruption Blocked . | . . . . . Overload Shots . | . . . . . Overflow Damage . | . . . . . Projectiles . | . . . . . Explosions . | . . . . . Melee . | . . . . . Knockbacks . | . . . . . Impact . | . . . . . Kinetic . | . . . . . Secondary . | . . . . . Self-Inflicted Damage 24 | . . 1 . 23 Shots 1 | . . . . 1 Rammed 1 | . . 1 . . Targets Rammed 1 | . . 1 . . Kicked . | . . . . . Crushed . | . . . . . Highest Temperature 558 | . 136 558 . 302 Average Temperature 132 | . 70 174 . 112 Received Heat Transfer 1064 | . . 366 . 698 Effects 12 | . . 11 . 1 Shutdowns 2 | . . 2 . . Energy Bleed 2 | . . 2 . . Damage (minor) 2 | . . 1 . 1 Damage (major) 6 | . . 6 . . Siege Activations . | . . . . . Robots Corrupted . | . . . . . Combat Hostiles . | . . . . . Parts Fried . | . . . . . Impact Corruptions . | . . . . . Robots Melted 1 | . . 1 . . Combat Hostiles 1 | . . 1 . . Parts Melted 5 | . . 3 . 2 Heat Transferred 3362 | . 259 1449 . 1654 Parts Sabotaged . | . . . . . Parts Stolen . | . . . . . Parts Stripped . | . . . . . Power Chain Reactions 2 | . . . . 2 Alert | -11 -10 -9 -8 -8 ------- Run | Yrd Mat Mat Mat Sto Peak Influence 456 | . 97 209 1 456 Initial 36 | . . 36 1 . Average 165 | . 49 114 1 269 Maximum Alert Level 2 | . . 1 . 2 Low Security (%) 63 | 100 100 89 100 23 Level 1 25 | . . 10 . 51 Level 2 10 | . . . . 24 Level 3 . | . . . . . Level 4 . | . . . . . Level 5 . | . . . . . High Security . | . . . . . Max Security . | . . . . . Squads Dispatched 4 | . . . . 4 Investigation . | . . . . . Extermination . | . . . . . Reinforcement 1 | . . . . 1 Assault . | . . . . . Garrison 3 | . . . . 3 Intercept . | . . . . . Searches Triggered . | . . . . . Construction Impeded . | . . . . . Haulers Reinforced . | . . . . . Active Scanning Responses . | . . . . . Cargo Convoy Interrupts . | . . . . . Stealth | -11 -10 -9 -8 -8 --------- Run | Yrd Mat Mat Mat Sto Distress Signals 3 | . . 1 . 2 Communications Jammed . | . . . . . Distress Signals . | . . . . . Times Spotted 62 | . 11 18 . 33 Peak Tracking Total 7 | . 4 4 . 7 Tactical Retreats 6 | . . . . 6 Traps | -11 -10 -9 -8 -8 ------- Run | Yrd Mat Mat Mat Sto Traps Triggered 8 | . 2 2 . 4 Indirectly . | . . . . . Trap Hack Attempts . | . . . . . Triggered . | . . . . . Disarmed . | . . . . . Reprogrammed . | . . . . . Reused . | . . . . . Traps Extracted . | . . . . . Installed . | . . . . . Triggered . | . . . . . Machines | -11 -10 -9 -8 -8 ---------- Run | Yrd Mat Mat Mat Sto Machines Disabled 2 | . . . . 2 Max in Single Turn 1 | . . . . 1 Machines Repaired . | . . . . . Machines Dismantled . | . . . . . Machines Sabotaged . | . . . . . Overloaded Fab Kills . | . . . . . Hacking | -11 -10 -9 -8 -8 --------- Run | Yrd Mat Mat Mat Sto Machines Accessed 2 | . 2 . . . Terminals 2 | . 2 . . . Fabricators . | . . . . . Repair Stations . | . . . . . Recycling Units . | . . . . . Scanalyzers . | . . . . . Garrison Access . | . . . . . Total Hacks 9 | . 9 . . . Successful 5 | . 5 . . . Failed 4 | . 4 . . . Catastrophic . | . . . . . Database Lockouts . | . . . . . Manual . | . . . . . Terminals 9 | . 9 . . . Fabricators . | . . . . . Repair Stations . | . . . . . Recycling Units . | . . . . . Scanalyzers . | . . . . . Garrison Access . | . . . . . Terminal Hacks 5 | . 5 . . . Record 2 | . 2 . . . Prototype ID Bank 1 | . 1 . . . Terminal Index 1 | . 1 . . . Alert Level 1 | . 1 . . . Fabricator Hacks . | . . . . . Repair Station Hacks . | . . . . . Recycling Unit Hacks . | . . . . . Scanalyzer . | . . . . . Garrison Access Hacks . | . . . . . Unauthorized Hacks . | . . . . . Terminals . | . . . . . Fabricators . | . . . . . Repair Stations . | . . . . . Recycling Units . | . . . . . Scanalyzers . | . . . . . Garrison Access . | . . . . . Data Cores Recovered . | . . . . . Used . | . . . . . Hacking Detections . | . . . . . Full Trace Events . | . . . . . Feedback Events . | . . . . . Feedback Blocked . | . . . . . Robot Schematics Acquired . | . . . . . Robots Built . | . . . . . Authchips . | . . . . . Time . | . . . . . Total Robot Build Rating . | . . . . . Part Schematics Acquired . | . . . . . Parts Built . | . . . . . Authchips . | . . . . . Time . | . . . . . Total Part Build Rating . | . . . . . Parts Repaired . | . . . . . Time . | . . . . . Parts Recycled . | . . . . . Recycled Matter . | . . . . . Retrieved Matter . | . . . . . Retrieved Components . | . . . . . Parts Scanalyzed . | . . . . . Part Schematics Acquired . | . . . . . Parts Damaged . | . . . . . Bothacking | -11 -10 -9 -8 -8 ------------ Run | Yrd Mat Mat Mat Sto Used RIF Installer . | . . . . . Robots Hacked . | . . . . . Non-combat . | . . . . . Combat . | . . . . . Robot Hacks Applied . | . . . . . Relay Couplers Released . | . . . . . Fabnet Peak Effective % . | . . . . . Robots Rewired . | . . . . . Allies Hacked . | . . . . . Hacks Repelled . | . . . . . Allies | -11 -10 -9 -8 -8 -------- Run | Yrd Mat Mat Mat Sto Total Allies . | . . . . . Largest Group . | . . . . . Highest-Rated Group . | . . . . . Highest-Rated Ally . | . . . . . Total Orders . | . . . . . Ally Attacks . | . . . . . Total Damage . | . . . . . Kills . | . . . . . Allies Corrupted . | . . . . . Allies Melted . | . . . . . Intel | -11 -10 -9 -8 -8 ------- Run | Yrd Mat Mat Mat Sto Robot Analysis Total . | . . . . . Derelict Logs Recovered . | . . . . . Drone Launches . | . . . . . Drone Recoveries . | . . . . . Exploration | -11 -10 -9 -8 -8 ------------- Run | Yrd Mat Mat Mat Sto Turns Passed 1249 | 39 236 420 7 547 Spaces Moved 895 | 39 253 201 8 394 Core 52 | 2 . . . 50 Treads . | . . . . . Legs 79 | . . 72 . 7 Wheels 572 | 37 253 128 8 146 Hover . | . . . . . Flight 192 | . . 1 . 191 Fastest Speed 32 | 50 80 80 95 32 Average Speed 90 | 78 80 142 95 72 Slowest Speed 400 | 80 80 355 95 400 Overloaded Moves . | . . . . . Propulsion Burnouts . | . . . . . Robots Hopped 4 | . . . . 4 Cave-ins Triggered . | . . . . . Exploration Rate (%) 24 | 3 43 23 2 49 Regions Visited 4 Branch Regions 1 Pre-discovered Areas . | . . . . . Known Exits Taken . | . . . . . Unknown Exits Taken 4 | 1 1 1 1 . Scrap Searched . | . . . . . Spaces Dug . | . . . . . Terrain Destroyed . | . . . . . Melee . | . . . . . Projectile . | . . . . . AOE . | . . . . . Terrain Rammed . | . . . . . Walls Destroyed . | . . . . . Machines Disabled . | . . . . . Actions | -11 -10 -9 -8 -8 --------- Run | Yrd Mat Mat Mat Sto Total 1134 | 44 269 266 7 548 Wait 18 | . . . . 18 Move 883 | 38 252 200 7 386 Hop 4 | . . . . 4 Pick Up 14 | . 7 3 . 4 Fast Attach 23 | 6 1 8 . 8 Attach 17 | . . 4 . 13 Detach 8 | . . 6 . 2 Swap 9 | . 1 4 . 4 Drop 6 | . . 6 . . Fire 108 | . 8 34 . 66 Melee . | . . . . . Ram 1 | . . 1 . . Kick . | . . . . . Crush . | . . . . . Escape Stasis 43 | . . . . 43 Rewire . | . . . . . Trap . | . . . . . Miscellaneous . | . . . . . Route ------- -11/Scrapyard -10/Materials (discovered 2 exits: *Mat x2) -9/Materials -8/Materials -8/Storage History --------- Turn | Location | Event 16 | -11/Scrapyard | Discovered new exit (range 16) 40 | -11/Scrapyard | Entered Materials 156 | -10/Materials | Discovered new exit (range 3) 255 | -10/Materials | Discovered new exit (range 15) 276 | -10/Materials | Entered another Materials area 276 | -9/Materials | Evolved 2 slots: Propulsion x1, Utility x1 324 | -9/Materials | Build established: Mutant 681 | -9/Materials | Discovered new exit (range 16) 696 | -9/Materials | Entered another Materials area 696 | -8/Materials | Evolved 2 slots: Propulsion x1, Utility x1 696 | -8/Materials | Discovered new exit (range 7) 703 | -8/Materials | Entered Storage 783 | -8/Storage | Garrison activated, responded to threat 859 | -8/Storage | Lost 4 parts (2n1u1w) 925 | -8/Storage | Lost 4 parts (1p2n1w) 1045 | -8/Storage | Lost 6 parts (3n1u2w) 1045 | -8/Storage | Core integrity fell below 50% 1199 | -8/Storage | Lost 4 parts (1p2n1w) 1218 | -8/Storage | Core integrity fell below 20% 1250 | -8/Storage | Destroyed by S-10 Pest with Light Assault Rifle Last Messages --------------- 01194_ Acquired 1 matter. 01194_ U-05 Engineer lays Concrete. 01196_ Acquired 10 matter. 01196_ U-05 Engineer lays Concrete. 01200_ R-06 Scavenger collects Lgt. Armor Plating. 01201_ U-05 Engineer lays Concrete. 01203_ K-01 Serf collects debris. 01207_ Chain reaction triggered in Lgt. Nuclear Core. 01214_ C-30 ARC bursts open, deploying its payload. 01214_ S-10 Pest unfolds itself. 01217_ G-47 Trooper misfires. 01218_ U-05 Engineer lays Concrete. 01219_ S-10 Pest destroyed. 01219_ U-05 Engineer lays Concrete. 01221_ Shock Rifle destroyed. 01227_ U-05 Engineer lays Concrete. 01228_ Wheel destroyed. 01229_ U-05 Engineer lays Concrete. 01240_ S-10 Pest IFF system glitched. 01243_ Minigun destroyed. Map ----- +----------------------------------------------------+ | | | | | | | | | | | ?????????????????????????????????????????????????? | | ?????????????????????????????????????????????????? | | ?????????????????????????????????????????????????? | | ?????????######################??????????????????? | | ?????????# ^ #??????????????????? | | ??????#+## +??????????????????? | | ??????+ #????????##"""#????? | | ??????# ##???????#T #????? | | ??????# ############+###### | | ??????# % ^ u + | | ??????#%##### # "" | | ????????????# ###### # "? | | ????????????#+##/###### # "? | | ????????????# # + "" | | ??????????### """ # # | | ??????????#"" """ !! # ################### # | | ??????????#"T "" ! ss #????????????####?# # | | ??????????#"" % #s #?????############# #### | | ??????????### # #?????######## ### #?? | | ????????????# "T # #?????## % ## T #?? | | ????????????# # a@#????? # "T" ## #?? | | ????????????####### ###k #????? # ### ##?? | | ??????????????????###?# #????? # ### #### | | ??????????????????????# o#????? # + | | ??????????????????????# #????? # """ ###### # | | ??????????????????????# a# ???? # """ ##?### # | | ??????????????????????# k ??? # """ # ? ## # | | ??????????????????????# # ? # #"G"## # | | ??????????????????????# # #####+####" "##+# | | ??????????????????????# # ! !+ # | | ??????????????????????# # #### # | | ??????????????????????# #= ? #### [#[ | | ??????????????????????##### ??????## %=#!* | | ??????????????????????????#???????###% +%""" ""? | | ??????????????????????????????????### !!#*""" ""?? | | ??????????????????????????????????##" !#=""" ""?? | | ??????????????????????????????????##T # ? | | ??????????????????????????????????##" #### ##### | | ???????????????????????????###????### ###### | | ??????????????????????#######"????### ##???# "" | | ??????????????????????#######"Y"???## ##???# "" | | ??????????????????????## ? # ##???# "" | | ??????????????????????## # ##???# | | ?????????????????????????????"" """ + ##???# | | ?????????????????????????????"" """ # ##???##### | +----------------------------------------------------+ Best States ------------- Heat Dissipation 31 Energy Generation 12 Energy Capacity 265 Matter Stores 300 Matter Capacity 300 Sight Range 18 Terrain Scan Density 10 Evasion (%) 63 Item Schematics ----------------- None Robot Schematics ------------------ None Fabricated ------------ Nothing Alien Tech Used ----------------- None Achievements -------------- It's Just You Challenges ------------ None Game ------ Seed ProcessingPropulsionInverter Manual? 0 Play Time 00:18:34 Cumulative 5.5 hours Start 2025.03.23 @ 12:17:51 End 2025.03.23 @ 12:36:22 Sessions 1 Manual Loads 0 Difficulty Rogue Special Mode None Game No. 16 Rogue 12 Adventurer 4 Explorer 0 Win Type - Total 0 Types 0/0/0/0/0/0/0/0/0 Lore% 9 Gallery% 12 Achievement% 12 Wizard Run 0 Options --------- Layout 0 ASCII 0 Keyboard 0 Movement Numpad Keybinds 0 Fullscreen 2 Font 36/Smallcaps Map View 38x25 Zoom Use 99% Tactical HUD 1 Map Filters NONE Filters NONE Steam 1 RUN: a5b767df-cb84-47cb-b09f-0fd0f3781e7f